bitfinex-derivatives/quotes_BTCF0:USTF0_20251118
["timestamp","ask_amount","ask_price","bid_price","bid_amount"]
[1763481682655,0.48824454,92912.0,92911.0,0.001]
[1763481683652,0.48824454,92912.0,92873.0,0.3608]
[1763481683653,0.0193,92898.0,92873.0,0.3608]
[1763481683852,0.1077798,92868.0,92867.0,0.03450338]
[1763481684056,0.27119,92868.0,92867.0,0.02278]
[1763481684348,0.27119,92868.0,92867.0,0.03468938]
[1763481684349,0.3789698,92868.0,92867.0,0.03468938]
[1763481684555,0.27119,92868.0,92867.0,0.03468938]
[1763481684858,0.37909929,92868.0,92867.0,0.05755938]
[1763481685050,0.38860929,92868.0,92867.0,0.03468938]
[1763481685256,0.1067867,92863.0,92862.0,0.02278]
[1763481685764,0.1077844,92865.0,92862.0,0.03450316]
[1763481685953,0.26180949,92868.0,92864.0,0.02278]
[1763481686150,0.00012949,92868.0,92867.0,0.04565]
[1763481686354,0.00016152,92877.0,92876.0,0.04565]
[1763481686561,0.26188152,92877.0,92876.0,0.04565]
[1763481686958,0.1314552,92872.0,92862.0,0.45805734]
[1763481687155,0.02368,92871.0,92870.0,0.00219803]
[1763481687359,0.02378237,92871.0,92870.0,0.00219803]
[1763481687559,0.1314656,92863.0,92862.0,0.0134452]
[1763481687864,0.1314656,92863.0,92862.0,0.002]
[1763481687865,0.7540256,92863.0,92862.0,0.002]
[1763481688060,0.1304702,92859.0,92848.0,0.08580014]
[1763481688657,0.1314819,92849.0,92848.0,0.08580014]
[1763481688964,0.1314819,92849.0,92843.0,0.3608]
[1763481688965,0.1294877,92844.0,92843.0,0.3608]
[1763481689364,0.1294877,92844.0,92843.0,0.44632029]
[1763481689663,0.1294877,92844.0,92840.0,0.00219803]
[1763481689964,0.1176511,92841.0,92840.0,0.00219803]
[1763481690157,0.1274911,92841.0,92839.0,0.01172825]
[1763481690360,0.1078193,92834.0,92833.0,0.10106508]
[1763481690662,0.00984,92831.0,92830.0,0.00219803]
[1763481690858,0.27164,92831.0,92830.0,0.00219803]
[1763481691060,0.27164,92831.0,92830.0,0.01392163]
[1763481691259,0.01968,92829.0,92828.0,0.00011886]
[1763481691452,0.01981005,92829.0,92828.0,0.00011886]
[1763481691658,0.01981005,92829.0,92806.0,0.3608]
[1763481691659,0.01768,92808.0,92806.0,0.3608]
[1763481691966,0.1078541,92805.0,92798.0,0.04329]
[1763481692163,0.1078576,92802.0,92801.0,0.04329]
[1763481692363,0.10800162,92817.0,92801.0,0.04329]
[1763481692662,0.3608,92811.0,92810.0,0.04548803]
[1763481692865,0.6226,92811.0,92810.0,0.04548803]
[1763481693663,0.01768,92807.0,92792.0,0.37414]
[1763481693869,0.6226,92811.0,92800.0,0.00219803]
[1763481694253,0.1078564,92802.0,92801.0,0.02227]
[1763481694464,0.1166964,92802.0,92801.0,0.02227]
[1763481694664,0.1166964,92802.0,92801.0,0.04329]
[1763481694966,0.1166964,92802.0,92792.0,0.01334]
[1763481694967,0.01768,92801.0,92792.0,0.01334]
[1763481695157,0.01768,92779.0,92778.0,0.03436]
[1763481695359,0.27956,92779.0,92778.0,0.01334]
[1763481695554,0.01768,92777.0,92776.0,0.01185781]
[1763481695759,0.1255725,92771.0,92770.0,0.00219803]
[1763481695964,0.1255725,92771.0,92766.0,0.0002695]
[1763481695965,0.1255771,92767.0,92766.0,0.0002695]
[1763481696159,0.3874571,92767.0,92766.0,0.0002695]
[1763481696966,0.27956,92767.0,92766.0,0.0002695]
[1763481697967,0.1079144,92753.0,92747.0,0.3608]
[1763481698166,0.01768,92748.0,92747.0,0.3608]
[1763481698467,0.3608,92755.0,92754.0,0.04329]
[1763481698661,0.00016171,92759.0,92758.0,0.04329]
[1763481698863,0.3608,92769.0,92768.0,0.04329]
[1763481699069,0.36089873,92769.0,92768.0,0.04329]
[1763481699458,9.873e-05,92769.0,92768.0,0.04329]
[1763481699771,0.3698,92778.0,92777.0,0.02102]
[1763481700064,0.3608,92778.0,92777.0,0.04329]
[1763481700269,0.36096171,92787.0,92786.0,0.04329]
[1763481700462,0.3608,92798.0,92790.0,0.00219803]
[1763481700766,0.3608,92798.0,92797.0,0.04329]
[1763481701074,0.262,92801.0,92800.0,0.04548803]
[1763481701269,0.26207585,92801.0,92800.0,0.04548803]
[1763481701465,0.38825345,92801.0,92800.0,0.00219803]
[1763481701968,0.38825345,92801.0,92791.0,0.00016162]
[1763481701969,0.1078681,92792.0,92791.0,0.04345162]
[1763481702167,0.1078628,92797.0,92791.0,0.04345162]
[1763481702374,0.36993375,92801.0,92800.0,0.04329]
[1763481702558,0.26207585,92801.0,92800.0,0.04548803]
[1763481702762,0.26407585,92801.0,92800.0,0.04548803]
[1763481702970,0.00207585,92801.0,92800.0,0.04548803]
[1763481703470,0.3608,92808.0,92807.0,0.04329]
[1763481703662,0.00016162,92810.0,92809.0,0.04329]
[1763481704669,0.1078634,92797.0,92796.0,0.04329]
[1763481705364,0.1078681,92792.0,92791.0,0.00016162]
[1763481705566,0.1170281,92792.0,92791.0,0.00016162]
[1763481705963,0.1261881,92792.0,92791.0,0.00016162]
[1763481706766,0.15904,92799.0,92796.0,0.04329]
[1763481706975,0.01303,92850.0,92831.0,0.1078218]
[1763481707161,0.01303,92850.0,92840.0,0.00219803]
[1763481707359,0.01303,92850.0,92840.0,0.34317974]
[1763481707561,0.01303,92850.0,92840.0,0.24472096]
[1763481707765,0.01303,92850.0,92840.0,0.0867811]
[1763481707963,4.771e-05,92849.0,92840.0,0.0867811]
[1763481708169,4.771e-05,92849.0,92840.0,0.0986075]
[1763481708360,4.771e-05,92849.0,92841.0,0.1078111]
[1763481708564,4.771e-05,92849.0,92840.0,0.01387671]
[1763481708769,0.02219771,92849.0,92848.0,0.3608]
[1763481708964,0.02219771,92849.0,92840.0,0.01167868]
[1763481709167,0.02219771,92849.0,92841.0,0.1078112]
[1763481709980,0.02215,92841.0,92840.0,0.09895307]
[1763481710166,4.771e-05,92849.0,92840.0,0.09895307]
[1763481710372,4.771e-05,92849.0,92846.0,0.3608]
[1763481710573,0.00104771,92849.0,92846.0,0.3608]
[1763481711167,0.02215,92847.0,92840.0,0.09895307]
[1763481711772,0.02215,92841.0,92840.0,0.09895307]
[1763481712078,0.00104771,92849.0,92840.0,0.09895307]
[1763481712562,0.00104771,92849.0,92846.0,0.1078054]
[1763481712978,0.00104771,92849.0,92845.0,0.3608]
[1763481713179,0.00104771,92849.0,92840.0,0.09895307]
[1763481713180,0.04509,92846.0,92840.0,0.09895307]
[1763481713571,0.02215,92841.0,92840.0,0.09895307]
[1763481714080,0.04509,92841.0,92840.0,0.09895307]
[1763481714475,0.04509,92841.0,92809.0,0.3608]
[1763481714476,0.04509,92815.0,92808.0,0.3608]
[1763481714683,0.04513771,92815.0,92808.0,0.3608]
[1763481714974,0.04513771,92815.0,92814.0,0.09599155]
[1763481715178,0.04513771,92815.0,92814.0,0.00010407]
[1763481715569,0.15297911,92815.0,92814.0,0.00010407]
[1763481715769,0.04509,92809.0,92808.0,0.01122359]
[1763481715974,0.04509,92809.0,92805.0,0.00016162]
[1763481715975,0.04509,92806.0,92805.0,0.00016162]
[1763481716174,0.04509,92806.0,92805.0,0.09786019]
[1763481716375,0.04509,92806.0,92805.0,0.00016162]
[1763481716676,0.3608,92813.0,92796.0,0.0113233]
[1763481716677,0.04509,92797.0,92796.0,0.0113233]
[1763481716881,0.04509,92791.0,92790.0,0.3608]
[1763481717073,0.04509,92791.0,92790.0,0.00219803]
[1763481717274,0.04509,92791.0,92790.0,0.0135477]
[1763481717882,0.02215,92791.0,92790.0,0.0135477]
[1763481718380,0.04401,92791.0,92790.0,0.0135477]
[1763481718582,0.04401,92791.0,92790.0,0.10224779]
[1763481718769,0.04401,92791.0,92790.0,0.0145477]
[1763481719371,0.04401,92791.0,92790.0,0.10097952]
[1763481719572,0.04401,92791.0,92790.0,0.00319803]
[1763481720171,0.04401,92791.0,92790.0,0.01494131]
[1763481720372,0.04401,92791.0,92781.0,0.00016162]
[1763481720373,0.04368,92782.0,92781.0,0.00016162]
[1763481720581,0.04368,92764.0,92757.0,0.07596902]
[1763481720769,0.04368,92764.0,92748.0,0.07596902]
[1763481721080,0.01296,92768.0,92760.0,0.00219803]
[1763481721285,0.04368,92764.0,92763.0,0.01161725]
[1763481721479,0.01296,92768.0,92763.0,9.462e-05]
[1763481721783,0.01296,92768.0,92763.0,0.01182024]
[1763481721784,0.02182,92764.0,92763.0,0.01182024]
[1763481722082,0.02182,92764.0,92763.0,9.462e-05]
[1763481722680,0.01196,92768.0,92764.0,0.1079006]
[1763481722876,0.00016162,92773.0,92763.0,0.01164133]
[1763481723078,0.01296,92768.0,92766.0,0.0002695]
[1763481723473,0.04368,92767.0,92766.0,0.0002695]
[1763481723875,0.40448,92767.0,92766.0,0.0002695]
[1763481724476,0.04368,92764.0,92763.0,0.01164133]
[1763481724986,0.00109265,92767.0,92763.0,0.11954263]
[1763481725383,0.00109265,92767.0,92766.0,0.1078983]
[1763481725678,0.00109265,92767.0,92765.0,0.3608]
[1763481725679,0.04368,92766.0,92765.0,0.3608]
[1763481726277,0.04368,92764.0,92763.0,0.01164133]
[1763481726473,0.04368,92749.0,92747.0,0.3608]
[1763481726685,0.00016162,92773.0,92755.0,0.1079111]
[1763481726875,0.01296,92805.0,92785.0,0.1078762]
[1763481727075,0.02182,92796.0,92795.0,0.14513728]
[1763481727280,0.04368,92791.0,92790.0,0.00219803]
[1763481727878,0.04379233,92791.0,92790.0,0.08713727]
[1763481728079,0.04379233,92791.0,92790.0,0.00219803]
[1763481729080,0.04368,92782.0,92781.0,0.36096171]
[1763481729279,0.01296,92786.0,92781.0,0.10804161]
[1763481729482,0.04368,92782.0,92781.0,0.00016171]
[1763481729683,0.30576,92782.0,92781.0,0.0883535]
[1763481729878,0.04368,92763.0,92757.0,0.00011507]
[1763481730083,0.01778083,92761.0,92760.0,0.00219803]
[1763481730281,0.3608,92768.0,92760.0,0.00219803]
[1763481730475,0.3608,92768.0,92762.0,0.107903]
[1763481730674,0.3608,92784.0,92762.0,0.39870058]
[1763481730878,0.02182,92772.0,92771.0,0.1078923]
[1763481731079,0.00016171,92782.0,92776.0,0.107886]
[1763481731384,0.107822,92832.0,92776.0,0.107886]
[1763481731385,0.26212,92809.0,92790.0,0.04515]
[1763481731681,0.04368,92787.0,92786.0,0.39865135]
[1763481731886,0.04368,92787.0,92786.0,0.3608]
[1763481732082,0.107855,92804.0,92790.0,0.00219803]
[1763481732275,0.04379233,92791.0,92790.0,0.00219803]
[1763481733790,0.02193233,92791.0,92790.0,0.00219803]
[1763481733994,0.00011233,92791.0,92790.0,0.13273591]
[1763481734188,0.00011233,92791.0,92790.0,0.08519938]
[1763481734380,0.00111233,92791.0,92790.0,0.04734803]
[1763481734689,0.00016171,92800.0,92799.0,0.04515]
[1763481734890,0.26208,92817.0,92800.0,0.00219803]
[1763481735081,0.26212,92830.0,92813.0,0.1078434]
[1763481735281,0.1078252,92829.0,92812.0,0.3608]
[1763481735483,0.3608,92833.0,92816.0,0.03785838]
[1763481735785,4.142e-05,92832.0,92823.0,0.3608]
[1763481736181,0.1078228,92831.0,92823.0,0.01164624]
[1763481736376,0.04368,92821.0,92820.0,0.08799823]
[1763481736582,0.04368,92821.0,92820.0,0.0508002]
[1763481736778,0.1515202,92816.0,92815.0,0.00016163]
[1763481736982,0.5123202,92816.0,92815.0,0.00016163]
[1763481738183,0.5123202,92816.0,92796.0,0.01156231]
[1763481738184,0.04368,92797.0,92796.0,0.01156231]
[1763481738494,0.04368,92797.0,92785.0,0.3608]
[1763481738495,0.04368,92794.0,92791.0,0.03785838]
[1763481738785,0.04368,92792.0,92791.0,0.03785838]
[1763481738987,0.04368,92790.0,92789.0,0.03785838]
[1763481739192,0.04368,92790.0,92760.0,0.26208]
[1763481739193,0.04368,92787.0,92786.0,0.03785838]
[1763481739391,0.3608,92790.0,92780.0,0.00016163]
[1763481739392,0.04368,92781.0,92780.0,0.00016163]
[1763481739591,0.40448,92781.0,92780.0,0.00016163]
[1763481739887,0.62296,92781.0,92768.0,0.08300838]
[1763481740091,0.40448,92781.0,92780.0,0.00219803]
[1763481740288,0.66664,92781.0,92780.0,0.00219803]
[1763481740596,0.66664,92781.0,92774.0,0.08605285]
[1763481740782,0.7745216,92781.0,92773.0,0.3608]
[1763481741189,0.7755216,92781.0,92773.0,0.3608]
[1763481741389,0.66764,92781.0,92773.0,0.3608]
[1763481741592,0.3618,92781.0,92780.0,0.04513]
[1763481741880,0.3608,92790.0,92781.0,0.1078809]
[1763481742081,0.3608,92798.0,92784.0,0.39871457]
[1763481742295,0.00016163,92799.0,92793.0,0.03791457]
[1763481742591,0.00016163,92799.0,92796.0,0.14577807]
[1763481742780,0.00016163,92799.0,92792.0,0.3608]
[1763481742781,0.00016163,92799.0,92794.0,0.05679707]
[1763481742985,0.00016163,92799.0,92795.0,0.1078646]
[1763481743685,0.00016163,92799.0,92796.0,0.04513]
[1763481743985,0.00016163,92799.0,92792.0,0.43676902]
[1763481744193,0.00016163,92799.0,92796.0,0.04513]
[1763481744388,0.00016163,92799.0,92796.0,0.02203]
[1763481744696,0.00016163,92799.0,92796.0,0.1211995]
[1763481744893,0.00104142,92797.0,92796.0,0.1211995]
[1763481745187,0.04428,92796.0,92792.0,0.4368695]
[1763481745390,0.02187,92794.0,92793.0,0.0760695]
[1763481745592,0.04428,92793.0,92792.0,0.3608]
[1763481745795,0.02187,92791.0,92790.0,0.00219803]
[1763481745988,0.3608,92796.0,92790.0,0.00219803]
[1763481746390,0.3608,92796.0,92791.0,0.1078693]
[1763481746695,0.04428,92792.0,92791.0,0.1078693]
[1763481746895,0.04428,92792.0,92790.0,0.00219803]
[1763481747191,0.02187,92792.0,92790.0,0.00219803]
[1763481747398,0.3608,92796.0,92791.0,0.1839388]
[1763481747592,0.3608,92796.0,92790.0,0.07826753]
[1763481747793,0.3608,92796.0,92790.0,0.18613693]
[1763481748100,0.00104142,92797.0,92796.0,0.04555]
[1763481748395,4.142e-05,92797.0,92796.0,0.04555]
[1763481748590,4.142e-05,92797.0,92795.0,0.1078645]
[1763481748591,0.00016163,92799.0,92798.0,0.04555]
[1763481748791,0.00016163,92799.0,92798.0,0.1216195]
[1763481748989,0.00016163,92799.0,92798.0,0.02245]
[1763481749193,0.3608,92824.0,92800.0,0.00219803]
[1763481749490,0.3608,92824.0,92823.0,0.03807353]
[1763481749691,0.3608,92833.0,92825.0,0.1078287]
[1763481749890,0.04445,92831.0,92830.0,0.04024093]
[1763481750290,0.04445,92831.0,92830.0,0.05191133]
[1763481750790,0.04445,92831.0,92830.0,0.04024093]
[1763481750992,0.04445,92831.0,92830.0,0.00219803]
[1763481751184,0.3608,92833.0,92830.0,0.01356001]
[1763481751390,0.1078192,92835.0,92834.0,0.04555]
[1763481751391,0.3608,92835.0,92834.0,0.04555]
[1763481751594,0.00016163,92840.0,92837.0,0.05253]
[1763481751794,0.00016163,92840.0,92837.0,0.12867706]
[1763481752189,0.00016163,92840.0,92839.0,0.04555]
[1763481752398,0.00016163,92840.0,92839.0,0.1533635]
[1763481753399,0.04445,92836.0,92835.0,0.07590803]
[1763481753605,0.1522681,92835.0,92834.0,0.3608]
[1763481753899,0.02167,92831.0,92830.0,0.01365057]
[1763481754106,0.04445,92831.0,92830.0,0.05695066]
[1763481754401,0.1522832,92822.0,92821.0,0.00016163]
[1763481754700,0.3608,92822.0,92820.0,0.00219803]
[1763481755096,0.3608,92822.0,92821.0,0.04555]
[1763481755293,0.3608,92833.0,92820.0,0.01531803]
[1763481755294,0.26208,92830.0,92820.0,0.01531803]
[1763481755493,0.1078251,92829.0,92825.0,0.03798416]
[1763481755797,0.04445,92826.0,92825.0,0.03798416]
[1763481756002,0.04445,92822.0,92821.0,0.03798416]
[1763481756297,0.1522844,92821.0,92820.0,0.00219803]
[1763481756497,0.02167,92821.0,92820.0,0.00219803]
[1763481756693,0.001,92822.0,92821.0,0.04555]
[1763481757099,0.3608,92835.0,92834.0,0.04555]
[1763481758004,0.3608,92835.0,92834.0,0.02245]
[1763481758203,0.3608,92835.0,92830.0,0.00219803]
[1763481758704,0.1522728,92831.0,92830.0,0.00219803]
[1763481758896,0.4686192,92835.0,92830.0,0.04774803]
[1763481759098,0.04445,92831.0,92830.0,0.00219803]
[1763481759403,0.1522925,92814.0,92809.0,0.08720892]
[1763481759702,0.107846,92811.0,92810.0,0.00219803]
[1763481760102,0.107846,92811.0,92810.0,0.02464803]
[1763481760297,0.152296,92811.0,92810.0,0.00219803]
[1763481760601,0.02167,92809.0,92792.0,0.07590803]
[1763481760796,0.26212,92813.0,92790.0,0.40729728]
[1763481760797,0.26212,92813.0,92810.0,0.00219803]
[1763481760998,0.02167,92811.0,92810.0,0.00219803]
[1763481761305,0.3699646,92813.0,92810.0,0.00219803]
[1763481761602,0.02167,92811.0,92810.0,0.00219803]
[1763481762000,0.04445,92811.0,92810.0,0.00219803]
[1763481762396,0.26212,92813.0,92812.0,0.04555]
[1763481762601,0.3608,92816.0,92812.0,0.04555]
[1763481762801,0.26312,92813.0,92812.0,0.04555]
[1763481763006,0.3709637,92813.0,92812.0,0.04555]
[1763481763308,0.3709637,92813.0,92810.0,0.00219803]
[1763481763508,0.001,92811.0,92810.0,0.00219803]
[1763481763710,0.001,92811.0,92810.0,0.04774803]
[1763481764207,0.001,92811.0,92808.0,0.08753443]
[1763481764208,0.02167,92809.0,92808.0,0.08753443]
[1763481764509,0.1523076,92801.0,92800.0,0.00219803]
[1763481765507,0.1078693,92791.0,92790.0,0.01141415]
[1763481765805,0.1523193,92791.0,92790.0,0.00219803]
[1763481766206,0.04445,92791.0,92790.0,0.00219803]
[1763481766405,0.04445,92791.0,92790.0,0.01372339]
[1763481766596,0.04445,92791.0,92790.0,0.01152536]
[1763481766802,0.1078819,92781.0,92778.0,0.3608]
[1763481767001,0.1078801,92782.0,92780.0,0.00219803]
[1763481767198,0.1078801,92782.0,92770.0,0.14513728]
[1763481767199,0.1295625,92771.0,92770.0,0.00219803]
[1763481767903,0.1523425,92771.0,92770.0,0.0850007]
[1763481768102,0.04445,92770.0,92769.0,0.3608]
[1763481768304,0.26208,92774.0,92757.0,0.00011507]
[1763481768305,0.04445,92767.0,92760.0,0.00219803]
[1763481768505,0.04445,92767.0,92757.0,0.00011507]
[1763481769011,0.04445,92758.0,92757.0,0.00011507]
[1763481769208,0.1523576,92758.0,92757.0,0.08467026]
[1763481769411,0.5131576,92758.0,92757.0,0.00011507]
[1763481769604,0.5131576,92758.0,92757.0,0.01139476]
[1763481769799,0.5131576,92758.0,92757.0,0.00011507]
[1763481770006,0.5131576,92758.0,92736.0,0.1210529]
[1763481770007,0.04445,92756.0,92755.0,0.08769852]
[1763481770201,0.3608,92758.0,92750.0,0.00219803]
[1763481770404,0.26208,92757.0,92750.0,0.00219803]
[1763481770609,0.1079141,92753.0,92750.0,0.00219803]
[1763481770814,0.3608,92758.0,92750.0,0.09861898]
[1763481771004,0.00016173,92765.0,92764.0,0.04555]
[1763481771210,0.00027521,92765.0,92764.0,0.04555]
[1763481771413,0.3608,92777.0,92764.0,0.04555]
[1763481771613,0.26212,92776.0,92770.0,0.00219803]
[1763481771801,0.04445,92771.0,92770.0,0.00219803]
[1763481772009,0.26212,92775.0,92770.0,0.00219803]
[1763481772206,0.04445,92771.0,92770.0,0.00219803]
[1763481772819,0.1523507,92764.0,92763.0,0.3608]
[1763481773417,0.1523507,92764.0,92761.0,0.00016173]
[1763481773418,0.04445,92762.0,92761.0,0.00016173]
[1763481774914,0.02167,92762.0,92761.0,0.00016173]
[1763481775128,0.30657,92762.0,92761.0,0.00016173]
[1763481775718,0.02167,92744.0,92743.0,0.3608]
[1763481775927,0.1523739,92744.0,92743.0,0.08749421]
[1763481776120,0.1079239,92744.0,92740.0,0.00219803]
[1763481776422,0.26212,92756.0,92755.0,0.04555]
[1763481776626,0.1523658,92751.0,92750.0,0.00219803]
[1763481777917,0.1079158,92751.0,92750.0,0.02380803]
[1763481778423,0.1079119,92755.0,92754.0,0.02161]
[1763481778624,0.00016173,92765.0,92754.0,0.02161]
[1763481778828,0.00016173,92765.0,92764.0,0.04425]
[1763481779235,0.1079007,92764.0,92760.0,0.00219803]
[1763481779433,0.1079007,92764.0,92763.0,0.02161]
[1763481779836,0.02172,92761.0,92760.0,0.00219803]
[1763481780032,0.00016173,92765.0,92752.0,0.01281]
[1763481780226,0.107911,92756.0,92752.0,0.01281]
[1763481780534,0.1528946,92752.0,92751.0,0.3608]
[1763481780737,0.1079324,92737.0,92731.0,0.3608]
[1763481780925,0.1079344,92735.0,92733.0,0.02161]
[1763481781229,0.1529179,92732.0,92731.0,0.3608]
[1763481781425,0.1079507,92721.0,92720.0,0.39772803]
[1763481781625,0.1296707,92721.0,92720.0,0.00219803]
[1763481781826,0.04498,92721.0,92720.0,0.00219803]
[1763481782027,0.26256,92729.0,92703.0,0.08532984]
[1763481782028,0.15294,92713.0,92703.0,0.08532984]
[1763481782230,0.15294,92713.0,92710.0,0.00055944]
[1763481782434,0.15294,92713.0,92703.0,0.08532984]
[1763481782435,0.15294,92713.0,92702.0,0.3608]
[1763481782626,0.152961,92695.0,92694.0,0.3608]
[1763481783132,0.152961,92695.0,92686.0,0.00026973]
[1763481783133,0.1079903,92687.0,92686.0,0.00026973]
[1763481783330,0.4895103,92687.0,92686.0,0.00026973]
[1763481783634,0.4895103,92687.0,92686.0,0.01153076]
[1763481783831,0.00012197,92687.0,92686.0,0.01153076]
[1763481784038,0.00012197,92687.0,92686.0,0.05578076]
[1763481785031,0.3608,92695.0,92686.0,0.05578076]
[1763481785230,0.00016182,92696.0,92686.0,0.05578076]
[1763481785231,0.00016182,92696.0,92695.0,0.04425]
[1763481785437,0.1297057,92691.0,92690.0,0.00055944]
[1763481785627,0.107981,92695.0,92690.0,0.00055944]
[1763481785828,0.00016182,92696.0,92690.0,0.00055944]
[1763481786027,0.00016182,92696.0,92695.0,0.04425]
[1763481786325,0.02188182,92696.0,92690.0,0.00055944]
[1763481786526,0.1079856,92692.0,92690.0,0.00055944]
[1763481786936,0.2626,92695.0,92694.0,0.04425]
[1763481787132,0.00016182,92696.0,92695.0,0.04425]
[1763481787435,0.00016182,92696.0,92693.0,0.1079828]
[1763481787436,0.3608,92715.0,92714.0,0.04425]
[1763481788836,0.3618,92715.0,92714.0,0.04425]
[1763481789234,0.02172,92711.0,92710.0,0.00055944]
[1763481789534,0.1529482,92706.0,92705.0,0.00016182]
[1763481789728,0.7763082,92706.0,92705.0,0.00016182]
[1763481790734,0.7763082,92706.0,92684.0,0.44625788]
[1763481790735,0.04498,92687.0,92684.0,0.44625788]
[1763481791431,0.00219803,92690.0,92684.0,0.44625788]
[1763481791632,0.107988,92689.0,92684.0,0.45906788]
[1763481791830,0.40578,92687.0,92684.0,0.08545788]
[1763481792030,0.40578,92687.0,92673.0,0.3608]
[1763481792230,0.00219803,92690.0,92689.0,0.04425]
[1763481792435,0.00219803,92690.0,92685.0,0.08717747]
[1763481792630,0.00219803,92690.0,92671.0,0.3608]
[1763481792631,0.38252,92687.0,92680.0,0.00055944]
[1763481792834,0.38252,92687.0,92686.0,0.00026973]
[1763481793336,0.40578,92687.0,92686.0,0.00026973]
[1763481793939,1.90578,92687.0,92686.0,0.00026973]
[1763481794133,2.0137703,92687.0,92686.0,0.00026973]
[1763481794636,1.90578,92687.0,92686.0,0.00026973]
[1763481794835,1.88252,92687.0,92686.0,0.00026973]
[1763481795038,1.78428,92687.0,92686.0,0.00026973]
[1763481795227,1.5,92687.0,92686.0,0.04451973]
[1763481795638,1.9687905,92687.0,92686.0,0.00026973]
[1763481795838,1.8608,92687.0,92686.0,0.00026973]
[1763481796039,1.5,92687.0,92686.0,0.04451973]
[1763481796634,0.00219803,92690.0,92689.0,0.1522382]
[1763481796834,0.3608,92696.0,92695.0,0.04425]
[1763481797234,1.8608,92696.0,92695.0,0.02161]
[1763481797441,1.8608,92696.0,92690.0,0.00055944]
[1763481797638,0.04498,92691.0,92690.0,0.00055944]
[1763481798242,0.1079845,92693.0,92692.0,0.02161]
[1763481798442,0.02172,92691.0,92690.0,0.00055944]
[1763481798943,0.1079845,92693.0,92692.0,0.04425]
[1763481799242,1.8608,92696.0,92695.0,0.04425]
[1763481799436,1.5,92696.0,92695.0,0.04425]
[1763481799946,0.3608,92704.0,92696.0,0.1522301]
[1763481800141,0.00219803,92700.0,92696.0,0.04425]
[1763481800340,0.1079801,92696.0,92689.0,0.3608]
[1763481800643,0.1079801,92696.0,92695.0,0.0214]
[1763481800644,0.001,92696.0,92695.0,0.0214]
[1763481800841,0.001,92696.0,92695.0,0.0441]
[1763481801336,0.001,92696.0,92695.0,0.0214]
[1763481801541,0.001,92696.0,92690.0,0.00055944]
[1763481801542,0.40562,92696.0,92690.0,0.00055944]
[1763481801846,0.3618,92696.0,92692.0,0.0214]
[1763481802049,0.3618,92696.0,92695.0,0.0441]
[1763481802544,0.3608,92696.0,92695.0,0.0441]
[1763481803033,1.50016182,92697.0,92695.0,0.0441]
[1763481803240,1.50016182,92697.0,92696.0,0.0441]
[1763481804044,1.60814072,92697.0,92696.0,0.0214]
[1763481804740,1.50016182,92697.0,92696.0,0.0441]
[1763481804945,0.3608,92718.0,92717.0,0.0441]
[1763481805441,1.8608,92718.0,92717.0,0.0214]
[1763481805749,1.8608,92718.0,92717.0,0.0441]
[1763481806050,0.00219803,92720.0,92719.0,0.0441]
[1763481806347,0.00016182,92727.0,92726.0,0.0441]
[1763481806741,0.02241182,92727.0,92722.0,0.3608]
[1763481807139,0.00016182,92727.0,92726.0,0.04262]
[1763481807843,0.00216182,92727.0,92726.0,0.04262]
[1763481808054,0.1079543,92719.0,92718.0,0.02163]
[1763481808442,0.1079543,92719.0,92716.0,0.08701813]
[1763481808443,0.02109,92717.0,92716.0,0.08701813]
[1763481808639,0.00219803,92720.0,92719.0,0.04285]
[1763481809040,0.26467803,92720.0,92719.0,0.04285]
[1763481809251,0.28576803,92720.0,92715.0,0.10215048]
[1763481809444,0.04325,92711.0,92710.0,0.36135944]
[1763481809639,0.30573,92711.0,92710.0,0.36135944]
[1763481809840,0.3618,92719.0,92710.0,0.38298944]
[1763481810041,0.001,92719.0,92717.0,0.02163]
[1763481810242,0.26244,92718.0,92717.0,0.02163]
[1763481810447,0.1079615,92713.0,92710.0,0.3608]
[1763481810749,0.04325,92711.0,92710.0,0.36135944]
[1763481811450,0.04325,92709.0,92708.0,0.00016182]
[1763481811651,0.30565,92709.0,92708.0,0.00016182]
[1763481812248,0.00219803,92710.0,92709.0,0.04285]
[1763481812437,0.001,92720.0,92718.0,0.04285]
[1763481812641,0.3588,92741.0,92730.0,0.01387]
[1763481812948,0.04325,92762.0,92750.0,0.00219803]
[1763481813143,0.04325,92762.0,92761.0,0.3608]
[1763481813342,0.04325,92751.0,92750.0,0.00219803]
[1763481813547,0.0316,92762.0,92749.0,0.03823451]
[1763481813548,0.04325,92750.0,92749.0,0.03823451]
[1763481813748,0.02216,92751.0,92750.0,0.00219803]
[1763481813952,0.04325,92744.0,92743.0,0.39904511]
[1763481814143,0.04325,92744.0,92743.0,0.3608]
[1763481814343,0.04325,92744.0,92743.0,0.39904511]
[1763481814543,0.04325,92744.0,92743.0,0.3608]
[1763481815149,0.001,92750.0,92747.0,0.1079196]
[1763481815343,0.001,92750.0,92747.0,0.16526186]
[1763481815543,0.001,92750.0,92748.0,0.05734226]
[1763481815855,0.001,92750.0,92743.0,0.3608]
[1763481815856,0.001,92750.0,92749.0,0.1507684]
[1763481816944,0.001,92750.0,92749.0,0.04285]
[1763481817151,0.1079123,92755.0,92750.0,0.00219803]
[1763481817352,0.1511623,92755.0,92754.0,0.3608]
[1763481818448,0.1511623,92755.0,92750.0,0.00219803]
[1763481818449,0.151166,92751.0,92750.0,0.00219803]
[1763481818850,0.04325,92744.0,92743.0,0.3608]
[1763481819054,0.04325,92744.0,92729.0,0.03819397]
[1763481819055,0.62404,92744.0,92729.0,0.03819397]
[1763481819243,0.1079451,92726.0,92723.0,0.03819397]
[1763481819553,0.1079545,92718.0,92715.0,0.39899397]
[1763481819755,0.107952,92721.0,92715.0,0.39899397]
[1763481820051,0.00016173,92727.0,92720.0,0.00219803]
[1763481820244,0.10810573,92727.0,92726.0,0.3608]
[1763481820443,0.37134573,92727.0,92726.0,0.3608]
[1763481821254,0.37334573,92727.0,92726.0,0.3608]
[1763481821447,0.37334573,92727.0,92723.0,0.03819397]
[1763481821750,0.37334573,92727.0,92717.0,0.41808533]
[1763481821751,0.1079498,92722.0,92720.0,0.00219803]
[1763481822256,0.26324,92724.0,92723.0,0.04285]
[1763481822553,0.26324,92724.0,92723.0,0.10013533]
[1763481822949,0.26324,92724.0,92723.0,0.05728533]
[1763481823256,0.3711884,92724.0,92720.0,0.00219803]
[1763481824152,0.3721884,92724.0,92720.0,0.00219803]
[1763481824454,0.3721884,92724.0,92723.0,0.05733588]